fUSD/lending_fUSD_20251110
["ID","MTS","AMOUNT","RATE_DAILY","PERIOD"]
[393536675,1762777884573,-500.0,0.00039463,120]
[393536676,1762777884615,-542.94335961,0.00039463,120]
[393536677,1762777884657,-500.0,0.00039463,120]
[393536678,1762777884698,-500.0,0.00039463,120]
[393536679,1762777884738,-355.0,0.00039463,120]
[393536680,1762777884778,-439.22981736,0.00039463,120]
[393536681,1762777884820,-536.60579659,0.00039463,120]
[393536682,1762777884866,-541.54743996,0.00039463,120]
[393536683,1762777884911,-530.32339582,0.00039463,120]
[393536684,1762777884956,-500.0,0.00039463,120]
[393536685,1762777885002,-500.0,0.00039463,120]
[393536686,1762777885047,-500.0,0.00039463,120]
[393536687,1762777885092,-205.0,0.00039463,120]
[393536688,1762777885136,-552.14615272,0.00039463,120]
[393536689,1762777885181,-500.0,0.00039463,120]
[393536690,1762777885224,-482.02,0.00039463,120]
[393536691,1762777885266,-500.0,0.00039463,120]
[393536692,1762777885309,-521.64,0.00039463,120]
[393536693,1762777885350,-616.97475743,0.00039463,120]
[393536694,1762777885395,-500.0,0.00039463,120]
[393536695,1762777885438,-500.0,0.00039463,120]
[393536696,1762777885480,-500.0,0.00039463,120]
[393536697,1762777885519,-625.29000345,0.00039463,120]
[393536698,1762777885559,-500.0,0.00039463,120]
[393536699,1762777885599,-500.0,0.00039463,120]
[393536700,1762777885639,-500.0,0.00039463,120]
[393536701,1762777885679,-314.57,0.00039463,120]
[393536702,1762777885720,-552.09,0.00039463,120]
[393536703,1762777885762,-500.0,0.00039463,120]
[393536704,1762777885803,-500.0,0.00039463,120]
[393536705,1762777885843,-557.56943086,0.00039463,120]
[393536706,1762777885882,-503.57886115,0.00039463,120]
[393536707,1762777885923,-500.0,0.00039463,120]
[393536708,1762777885965,-500.0,0.00039463,120]
[393536709,1762777886009,-500.0,0.00039463,120]
[393536710,1762777886206,-501.92,0.00039463,120]
[393536711,1762777886252,-500.0,0.00039463,120]
[393536712,1762777886296,-323.37,0.00039463,120]
[393536713,1762777886340,-500.0,0.00039463,120]
[393536714,1762777886383,-500.0,0.00039463,120]
[393536715,1762777886425,-300.07,0.00039463,120]
[393536716,1762777886468,-548.8751401,0.00039463,120]
[393536717,1762777886510,-592.81462823,0.00039463,120]
[393536718,1762777886551,-500.0,0.00039463,120]
[393536719,1762777886590,-500.0,0.00039463,120]
[393536720,1762777886631,-590.50243875,0.00039463,120]
[393536721,1762777886673,-500.0,0.00039463,120]
[393536722,1762777886713,-500.0,0.00039463,120]
[393536723,1762777886753,-500.0,0.00039463,120]
[393536724,1762777886795,-500.0,0.00039463,120]
[393536725,1762777886839,-514.98207001,0.00039463,120]
[393536726,1762777886883,-368.81605898,0.00039463,120]
[393536727,1762777886927,-602.22179365,0.00039463,120]
[393536728,1762777886971,-500.0,0.00039463,120]
[393536729,1762777887016,-540.30343584,0.00039463,120]
[393536730,1762777887060,-500.0,0.00039463,120]
[393536731,1762777887105,-514.77743876,0.00039463,120]
[393536732,1762777887149,-500.0,0.00039463,120]
[393536733,1762777887193,-507.5,0.00039463,120]
[393536734,1762777887239,-505.93426433,0.00039463,120]
[393536735,1762777887285,-500.0,0.00039463,120]
[393536736,1762777887330,-158.58192936,0.00039463,120]
[393536737,1762777887374,-500.0,0.00039463,120]
[393536738,1762777887417,-550.31345863,0.00039463,120]
[393536739,1762777887459,-526.44763624,0.00039463,120]
[393536740,1762777887500,-390.66483439,0.00039463,120]
[393536741,1762777887541,-519.38981487,0.00039463,120]
[393536742,1762777887581,-500.0,0.00039463,120]
[393536743,1762777887624,-507.5615555,0.00039463,120]
[393536744,1762777887665,-740.09,0.00039463,120]
[393536745,1762777887705,-740.09,0.00039463,120]
[393536746,1762777887745,-740.09,0.00039463,120]
[393536747,1762777887786,-740.09,0.00039463,120]
[393536748,1762777887827,-740.09,0.00039463,120]
[393536749,1762777887869,-740.09,0.00039463,120]
[393536750,1762777887911,-740.09,0.00039463,120]
[393536751,1762777887953,-740.09,0.00039463,120]
[393536752,1762777887996,-740.09,0.00039463,120]
[393536753,1762777888040,-740.09,0.00039463,120]
[393536754,1762777888087,-740.09,0.00039463,120]
[393536755,1762777888132,-740.09,0.00039463,120]
[393536756,1762777888176,-740.09,0.00039463,120]
[393536757,1762777888220,-740.09,0.00039463,120]
[393536758,1762777888263,-740.09,0.00039463,120]
[393536759,1762777888304,-740.09,0.00039463,120]
[393536760,1762777888345,-740.09,0.00039463,120]
[393536761,1762777888385,-740.09,0.00039463,120]
[393536762,1762777888424,-740.09,0.00039463,120]
[393536763,1762777888465,-740.09,0.00039463,120]
[393536764,1762777888504,-740.09,0.00039463,120]
[393536765,1762777888543,-740.09,0.00039463,120]
[393536766,1762777888581,-740.09,0.00039463,120]
[393536767,1762777888619,-740.1521006,0.00039463,120]
[393536768,1762777888659,-503.15395143,0.00039463,120]
[393536769,1762777888702,-613.3745655,0.00039463,120]
[393536770,1762777888743,-207.72558511,0.00039463,120]
[393536771,1762777888784,-500.0,0.00039463,120]
[393536772,1762777888827,-500.0,0.00039463,120]
[393536773,1762777888871,-500.0,0.00039463,120]
[393536774,1762777888918,-298.2,0.00039463,120]
[393536775,1762777888964,-592.04673199,0.00039463,120]
[393536776,1762777889010,-1623.69691128,0.00039463,120]
[393536777,1762777889055,-1065.77981006,0.00039463,120]
[393536778,1762777889100,-224.55176256,0.00039463,120]
[393536779,1762777889144,-500.0,0.00039463,120]
[393536780,1762777889188,-531.66794343,0.00039463,120]
[393536781,1762777889230,-506.45351513,0.00039463,120]
[393536782,1762777889271,-507.10588785,0.00039463,120]
[393536783,1762777889312,-500.0,0.00039463,120]
[393536784,1762777889351,-500.0,0.00039463,120]
[393536785,1762777889394,-504.39334715,0.00039463,120]
[393536786,1762777889435,-415.27360173,0.00039463,120]
[393536787,1762777889474,-500.0,0.00039463,120]
[393536788,1762777889514,-500.0,0.00039463,120]
[393536789,1762777889558,-500.0,0.00039463,120]
[393536790,1762777889612,-500.0,0.00039463,120]
[393536791,1762777889661,-500.0,0.00039463,120]
[393536792,1762777889709,-500.0,0.00039463,120]
[393536793,1762777889756,-500.0,0.00039463,120]
[393536794,1762777889801,-500.0,0.00039463,120]
[393536795,1762777889846,-500.0,0.00039463,120]
[393536796,1762777889891,-500.0,0.00039463,120]
[393536797,1762777889938,-500.0,0.00039463,120]
[393536798,1762777889983,-500.0,0.00039463,120]
[393536799,1762777890028,-181.96653261,0.00039463,120]
[393536800,1762777890072,-1443.62,0.00039463,60]
[393536801,1762777890116,-150.0,0.00039463,120]
[393536802,1762777890158,-150.0,0.00039463,120]
[393536803,1762777890200,-150.0,0.00039463,120]
[393536804,1762777890240,-150.0,0.00039463,120]
[393536805,1762777890280,-150.0,0.00039463,120]
[393536806,1762777890318,-150.0,0.00039463,120]
[393536807,1762777890523,-150.0,0.00039463,120]
[393536808,1762777890567,-150.0,0.00039463,120]
[393536809,1762777890608,-151.28197843,0.00039463,120]
[393536810,1762777890646,-50242.25066898,0.00039463,120]
[393536811,1762777890684,-624.11184197,0.00039463,120]
[393536812,1762777890723,-500.0,0.00039463,120]
[393536813,1762777890762,-239.26,0.00039463,120]
[393536814,1762777890802,-161.90920151,0.00039463,120]
[393536815,1762777890842,-500.0,0.00039463,120]
[393536816,1762777890884,-170.37154182,0.00039463,120]
[393536817,1762777890924,-500.0,0.00039463,120]
[393536818,1762777890965,-500.0,0.00039463,120]
[393536819,1762777891006,-158.382574,0.00039463,120]
[393536820,1762777891048,-192.7058,0.00039463,120]
[393536821,1762777891091,-192.7058,0.00039463,120]
[393536822,1762777891131,-192.7058,0.00039463,120]
[393536823,1762777891172,-192.7058,0.00039463,120]
[393536824,1762777891211,-234.944826,0.00039463,120]
[393536825,1762777891248,-342.006157,0.00039463,120]
[393536826,1762777891286,-234.944826,0.00039463,120]
[393536827,1762777891323,-342.006157,0.00039463,120]
[393536828,1762777891360,-234.944826,0.00039463,120]
[393536829,1762777891402,-234.944826,0.00039463,120]
[393536830,1762777891443,-342.006157,0.00039463,120]
[393536831,1762777891481,-342.006157,0.00039463,120]
[393536832,1762777891519,-534.316662,0.00039463,120]
[393536833,1762777891555,-534.316662,0.00039463,120]
[393536834,1762777891592,-534.316662,0.00039463,120]
[393536835,1762777891629,-534.316662,0.00039463,120]
[393536836,1762777891667,-357.961853,0.00039463,120]
[393536837,1762777891705,-357.961853,0.00039463,120]
[393536838,1762777891745,-357.961853,0.00039463,120]
[393536839,1762777891784,-357.961853,0.00039463,120]
[393536840,1762777891823,-500.0,0.00039463,120]
[393536841,1762777891860,-162.026248,0.00039463,90]
[393536842,1762777891899,-156.203307,0.00039463,120]
[393536843,1762777891939,-156.203307,0.00039463,120]
[393536844,1762777891978,-415.627899,0.00039463,120]
[393536845,1762777892017,-415.627899,0.00039463,120]
[393536846,1762777892059,-415.627899,0.00039463,120]
[393536847,1762777892101,-153.743892,0.00039463,120]
[393536848,1762777892144,-415.627899,0.00039463,120]
[393536849,1762777892188,-199.379692,0.00039463,120]
[393536850,1762777892228,-199.379692,0.00039463,120]
[393536851,1762777892268,-199.379692,0.00039463,120]
[393536852,1762777892306,-464.480435,0.00039463,120]
[393536853,1762777892343,-464.480435,0.00039463,120]
[393536854,1762777892381,-464.480435,0.00039463,120]
[393536855,1762777892419,-464.480435,0.00039463,120]
[393536856,1762777892456,-519.02098065,0.00039463,120]
[393536857,1762777892492,-469.25577378,0.00039463,120]
[393536858,1762777892528,-1000.0,0.00039463,120]
[393536859,1762777892563,-1000.0,0.00039463,120]
[393536860,1762777892599,-1000.0,0.00039463,120]
[393536861,1762777892634,-1000.0,0.00039463,120]
[393536862,1762777892671,-1000.0,0.00039463,120]
[393536863,1762777892706,-1000.0,0.00039463,120]
[393536864,1762777892744,-1000.0,0.00039463,120]
[393536865,1762777892781,-1000.0,0.00039463,120]
[393536866,1762777892818,-1000.0,0.00039463,120]
[393536867,1762777892855,-1000.0,0.00039463,120]
[393536868,1762777892892,-1000.0,0.00039463,120]
[393536869,1762777892929,-1000.0,0.00039463,120]
[393536870,1762777892968,-1071.98959899,0.00039463,120]
[393536871,1762777893007,-547.53155399,0.00039463,120]
[393536872,1762777893048,-500.0,0.00039463,120]
[393536873,1762777893094,-496.89506774,0.00039463,120]
[393536874,1762777893136,-377.89,0.00039463,120]
[393536875,1762777893180,-500.0,0.00039463,120]
[393536876,1762777893220,-500.0,0.00039463,120]
[393536877,1762777893261,-239.65150897,0.00039463,120]
[393536878,1762777894349,500.0,0.00039463,120]
[393536879,1762777894756,-881.12,0.00032359,32]
[393536880,1762777894808,-524.5,0.000344,30]
[393536881,1762777894855,-500.0,0.00034427,30]
[393536882,1762777894903,-510.18200305,0.00034427,30]
[393536883,1762777894949,-500.0,0.00034427,120]
[393536884,1762777894997,-1596.67579016,0.00034437,30]
[393536885,1762777895043,-500.0,0.00034437,120]
[393536886,1762777895088,-200.0,0.00034437,30]
[393536887,1762777895132,-461.30115043,0.00034437,30]
[393536888,1762777895176,-200.0,0.00034437,30]
[393536890,1762777895221,-208.40391773,0.00034437,30]
[393536891,1762777895265,-163.89204126,0.00034437,30]
[393536892,1762777895307,-200.0,0.00034437,30]
[393536893,1762777895348,-200.0,0.00034437,30]
[393536894,1762777895391,-216.58378992,0.00034437,30]
[393536895,1762777895433,-151.0,0.00034438,31]
[393536896,1762777895474,-151.0,0.00034438,31]
[393536897,1762777895514,-155.673427,0.00034438,31]
[393536898,1762777895553,-155.673427,0.00034438,31]
[393536899,1762777895592,-155.673427,0.00034438,31]
[393536900,1762777895633,-155.673427,0.00034438,31]
[393536901,1762777895674,-151.0,0.00034438,31]
[393536902,1762777895714,-155.381167,0.00034438,31]
[393536903,1762777895755,-209.692662,0.00034438,30]
[393536904,1762777895796,-151.0,0.00034438,31]
[393536905,1762777895836,-258.131443,0.00034438,31]
[393536906,1762777895880,-152.675179,0.00034438,31]
[393536907,1762777895924,-151.0,0.00034438,31]
[393536908,1762777895972,-151.0,0.00034438,31]
[393536909,1762777896020,-151.0,0.00034438,31]
[393536910,1762777896069,-151.0,0.00034438,31]
[393536911,1762777896117,-151.0,0.00034438,31]
[393536912,1762777896166,-151.0,0.00034438,31]
[393536913,1762777896216,-151.0,0.00034438,31]
[393536914,1762777896262,-151.0,0.00034438,31]
[393536915,1762777896308,-246.526567,0.00034438,31]
[393536916,1762777896356,-1016.0,0.00034476,120]
[393536917,1762777896406,-151.0,0.00034736,31]
[393536918,1762777896450,-151.0,0.00034736,31]
[393536919,1762777896493,-151.0,0.00034736,31]
[393536920,1762777896536,-151.0,0.00034736,31]
[393536921,1762777896580,-151.0,0.00034736,31]
[393536922,1762777896623,-151.0,0.00034736,31]
[393536923,1762777896667,-151.0,0.00034736,31]
[393536924,1762777896711,-151.0,0.00034736,31]
[393536925,1762777896752,-151.0,0.00034736,31]
[393536926,1762777896795,-151.0,0.00034736,31]
[393536927,1762777896840,-259.906988,0.00034736,31]
[393536928,1762777896884,-169.894068,0.00034736,31]
[393536929,1762777896928,-151.0,0.00034736,31]
[393536930,1762777896975,-151.0,0.00034736,30]
[393536931,1762777897020,-151.0,0.00034736,30]
[393536932,1762777897065,-180.682619,0.00034736,31]
[393536933,1762777897111,-151.0,0.00034736,31]
[393536934,1762777897159,-151.0,0.00034736,31]
[393536935,1762777897204,-151.0,0.00034736,31]
[393536936,1762777897249,-151.0,0.00034736,31]
[393536937,1762777897293,-151.0,0.00034736,31]
[393536938,1762777897337,-151.0,0.00034736,31]
[393536939,1762777897380,-151.0,0.00034736,31]
[393536940,1762777897425,-151.0,0.00034736,31]
[393536941,1762777897468,-289.547375,0.00034736,31]
[393536942,1762777897507,-151.0,0.00034736,31]
[393536943,1762777897544,-151.0,0.00034736,31]
[393536944,1762777897581,-156.382887,0.00034736,31]
[393536945,1762777897618,-151.000008,0.00034736,31]
[393536946,1762777897656,-151.0,0.00034793,31]
[393536947,1762777897696,-151.0,0.00034793,31]
[393536948,1762777897736,-166.66,0.00035012,30]
[393536949,1762777897777,-1019.0,0.00035246,120]
[393536950,1762777897816,-151.0,0.00035587,31]
[393536951,1762777897854,-151.0,0.00035587,31]
[393536952,1762777898042,-151.0,0.00035587,31]
[393536953,1762777898092,-151.0,0.00035587,31]
[393536954,1762777898142,-151.0,0.00035587,31]
[393536955,1762777898190,-173.307504,0.00035587,31]
[393536956,1762777898237,-175.910397,0.00035587,31]
[393536957,1762777898283,-524.5,0.000356,30]
[393536958,1762777898327,-151.0,0.00035616,31]
[393536959,1762777898374,-151.0,0.00035616,31]
[393536960,1762777898415,-151.0,0.00035616,31]
[393536961,1762777898458,-166.66,0.00035692,30]
[393536962,1762777898500,-151.0,0.00035947,31]
[393536963,1762777898542,-151.0,0.00035947,31]
[393536964,1762777898583,-151.0,0.00035947,31]
[393536965,1762777898629,-151.0,0.00035947,30]
[393536966,1762777898675,-163.260451,0.00035947,30]
[393536967,1762777898719,-151.0,0.00035947,31]
[393536968,1762777898764,-151.0,0.00035947,31]
[393536969,1762777898809,-151.0,0.00035947,31]
[393536970,1762777898854,-151.0,0.00035947,31]
[393536971,1762777898896,-151.0,0.00035947,31]
[393536972,1762777898940,-151.0,0.00035947,31]
[393536973,1762777898985,-151.0,0.00035947,31]
[393536974,1762777899033,-151.0,0.00035947,31]
[393536975,1762777899080,-151.0,0.00035947,31]
[393536976,1762777899126,-2317.56,0.00036,60]
[393536977,1762777899171,-2000.0,0.00036149,120]
[393536978,1762777899215,-151.0,0.00036152,31]
[393536979,1762777899258,-151.0,0.00036152,31]
[393536980,1762777899302,-155.673427,0.00036152,31]
[393536981,1762777899345,-155.673427,0.00036152,31]
[393536982,1762777899389,-155.673427,0.00036152,31]
[393536983,1762777899432,-155.673427,0.00036152,31]
[393536984,1762777899475,-151.0,0.00036152,31]
[393536985,1762777899516,-151.0,0.00036152,31]
[393536986,1762777899557,-151.0,0.00036161,31]
[393536987,1762777899597,-151.0,0.00036161,31]
[393536988,1762777899637,-151.0,0.00036161,31]
[393536989,1762777899680,-524.5,0.000366,30]
[393536990,1762777899721,-150.6,0.00036723,60]
[393536991,1762777899765,-150.6,0.00036823,60]
[393536992,1762777899810,-150.6,0.00036923,60]
[393536993,1762777899855,-150.6,0.00037023,60]
[393536994,1762777899899,-151.0,0.00037065,31]
[393536995,1762777899942,-151.0,0.00037065,31]
[393536996,1762777899983,-151.0,0.00037065,31]
[393536997,1762777900026,-151.0,0.00037065,31]
[393536998,1762777900068,-151.0,0.00037065,31]
[393536999,1762777900113,-150.6,0.00037123,60]
[393537000,1762777900163,-190.95621981,0.000372,120]
[393537001,1762777900214,-150.6,0.00037223,60]
[393537002,1762777900257,-150.6,0.00037323,60]
[393537003,1762777900299,-150.6,0.00037423,60]
[393537004,1762777900338,-150.6,0.00037523,60]
[393537005,1762777900377,-524.5,0.000376,30]
[393537006,1762777900419,-150.6,0.00037623,60]
[393537007,1762777900461,-150.6,0.00037723,60]
[393537008,1762777900501,-151.0,0.000378,31]
[393537009,1762777900542,-151.0,0.000378,31]
[393537010,1762777900581,-188.509328,0.000378,31]
[393537011,1762777900619,-151.0,0.00037817,31]
[393537012,1762777900658,-151.0,0.00037817,31]
[393537013,1762777900696,-151.0,0.00037817,31]
[393537014,1762777900738,-150.6,0.00037823,60]
[393537015,1762777900782,-150.6,0.00037923,60]
[393537016,1762777900825,-151.0,0.0003799,31]
[393537017,1762777900874,-151.0,0.0003799,31]
[393537018,1762777900917,-151.0,0.0003799,30]
[393537019,1762777900962,-151.0,0.0003799,31]
[393537020,1762777901010,-183.852773,0.0003799,31]
[393537021,1762777901056,-151.0,0.0003799,31]
[393537022,1762777901104,-151.0,0.0003799,31]
[393537023,1762777901153,-218.623456,0.0003799,31]
[393537024,1762777901200,-151.0,0.0003799,31]
[393537025,1762777901246,-151.0,0.0003799,31]
[393537026,1762777901291,-183.0,0.00038,30]
[393537027,1762777901334,-8000.0,0.00038,120]
[393537028,1762777901378,-151.0,0.00038,31]
[393537029,1762777901421,-187.928662,0.00038,31]
[393537030,1762777901464,-241.53105447,0.000381,33]
[393537031,1762777901507,-500.0,0.00038145,30]
[393537032,1762777901549,-500.0,0.00038145,30]
[393537033,1762777901595,-500.0,0.00038145,30]
[393537034,1762777901637,-151.0,0.00038173,31]
[393537035,1762777901678,-155.673427,0.00038181,31]
[393537036,1762777901719,-155.673427,0.00038181,31]
[393537037,1762777901760,-155.673427,0.00038181,31]
[393537038,1762777902023,-155.673427,0.00038181,31]
[393537039,1762777902077,-151.0,0.00038224,31]
[393537040,1762777902123,-250.724741,0.00038224,31]
[393537041,1762777902167,-151.0,0.00038234,31]
[393537042,1762777902210,-151.0,0.00038234,31]
[393537043,1762777902248,-151.0,0.00038234,31]
[393537044,1762777902287,-151.0,0.00038254,31]
[393537045,1762777902329,-151.0,0.00038254,31]
[393537046,1762777902371,-151.0,0.00038254,31]
[393537047,1762777902412,-375.46061368,0.00038356,120]
[393537048,1762777902452,-153.461511,0.00038373,120]
[393537049,1762777902491,-151.809424,0.00038373,120]
[393537050,1762777902529,-151.0,0.00038373,120]
[393537051,1762777902567,-500.0,0.00038419,30]
[393537052,1762777902604,-629.81,0.00038419,30]
[393537053,1762777902643,-729.63216781,0.00038615,120]
[393537054,1762777902685,-500.0,0.00038693,30]
[393537055,1762777902723,-212.393808,0.0003879,120]
[393537056,1762777902763,-151.0,0.000388,120]
[393537057,1762777902801,-151.0,0.000388,120]
[393537058,1762777902840,-237.312706,0.000388,120]
[393537059,1762777902877,-151.33664621,0.000388,120]
[393537060,1762777902916,-151.33664607,0.000388,120]
[393537061,1762777902957,-151.33664607,0.000388,120]
[393537062,1762777902997,-151.33664607,0.000388,120]
[393537063,1762777903039,-151.33664607,0.000388,120]
[393537064,1762777903078,-283.533,0.00038888,30]
[393537065,1762777903119,-221.045345,0.00038962,120]
[393537066,1762777903158,-500.0,0.00038967,30]
[393537067,1762777903197,-718.0,0.00039,50]
[393537068,1762777903235,-124799.0219428,0.00039,120]
[393537069,1762777903272,-6935.31374551,0.00039025,30]
[393537070,1762777903310,-151.0,0.00039128,120]
[393537071,1762777903347,-151.0,0.00039128,120]
[393537072,1762777903393,-151.0,0.00039128,30]
[393537073,1762777903435,-151.0,0.00039128,120]
[393537074,1762777903475,-151.0,0.00039128,120]
[393537075,1762777903518,-151.0,0.00039128,120]
[393537076,1762777903558,-151.0,0.00039128,120]
[393537077,1762777903597,-151.0,0.00039128,120]
[393537078,1762777903639,-155.673427,0.00039137,120]
[393537079,1762777903679,-155.673427,0.00039137,120]
[393537080,1762777903719,-155.673427,0.00039137,120]
[393537081,1762777903759,-155.673427,0.00039137,120]
[393537082,1762777903805,-151.0,0.00039172,120]
[393537083,1762777903851,-5000.0,0.00039181,30]
[393537084,1762777903898,-151.0,0.00039182,120]
[393537085,1762777903946,-151.0,0.00039182,120]
[393537086,1762777903993,-151.0,0.00039182,120]
[393537087,1762777904041,-151.0,0.00039182,120]
[393537088,1762777904088,-206.491662,0.00039182,120]
[393537089,1762777904135,-151.0,0.000392,120]
[393537090,1762777904179,-151.0,0.000392,120]
[393537091,1762777904225,-500.0,0.00039241,30]
[393537092,1762777904268,-151.0,0.00039242,120]
[393537093,1762777904311,-332.98000038,0.00039263,30]
[393537094,1762777904352,-155.673427,0.00039281,120]
[393537095,1762777904397,-155.673427,0.00039281,120]
[393537096,1762777904439,-155.673427,0.00039281,120]
[393537097,1762777904479,-155.673435,0.00039281,120]
[393537098,1762777904522,-465.44213811,0.000393,120]
[393537099,1762777904565,-151.0,0.0003931,120]
[393537100,1762777904608,-73729.31532572,0.0003932,30]
[393537101,1762777904653,-151.0,0.00039362,120]
[393537102,1762777904697,-151.0,0.00039362,120]
[393537103,1762777904740,-151.0,0.00039362,30]
[393537104,1762777904782,-151.0,0.00039362,120]
[393537105,1762777904823,-151.0,0.00039362,120]
[393537106,1762777904864,-151.0,0.00039362,120]
[393537107,1762777904904,-151.0,0.00039362,120]
[393537108,1762777904946,-151.0,0.00039362,120]
[393537109,1762777904986,-151.0,0.00039428,120]
[393537110,1762777905027,-1000.0,0.00039447,120]
[393537111,1762777905067,-1000.0,0.00039447,120]
[393537112,1762777905108,-244.85418609,0.00039447,120]
[393537113,1762777905150,-2000.0,0.00039459,120]
[393537114,1762777905227,-152.699517,0.00039463,120]
[393537115,1762777905269,-150.0,0.00039483,120]
[393537116,1762777905311,-150.90195053,0.00039483,120]
[393537117,1762777905351,-1595.89,0.000395,30]
[393537118,1762777905394,-500.0,0.00039515,30]
[393537119,1762777905603,-502.64,0.00039554,30]
[393537120,1762777905651,-150.0,0.00039739,120]
[393537121,1762777905697,-500.0,0.00039789,30]
[393537122,1762777905742,-163.0,0.000398,120]
[393537123,1762777905785,-403924.78706729,0.0003988,30]
[393537124,1762777905827,-1216.16140457,0.0003988,120]
[393537125,1762777905871,-184.3830315,0.00039898,120]
[393537126,1762777905915,-3079.28790832,0.000399,120]
[393537127,1762777905956,-445.0,0.00039986,90]
[393537128,1762777905996,-9523.86925279,0.0003999,30]
[393537129,1762777906036,-234.33246908,0.00039999,31]
[393537130,1762777906077,-488.32654453,0.00039999,31]
[393537131,1762777906120,-486.51180502,0.00039999,31]
[393537132,1762777906161,-1173.11094406,0.0004,30]
[393537133,1762777906202,-258.42910205,0.0004,30]
[393537134,1762777906242,-246.92,0.0004,30]
[393537135,1762777906281,-828.15153614,0.0004,120]
[393537136,1762777906319,-1898.05150527,0.0004,120]
[393537137,1762777906357,-151.49102129,0.0004,120]
[393537138,1762777906399,-591.82576236,0.0004,120]
[393537139,1762777906438,-1494.51658036,0.0004,120]
[393537140,1762777906478,-212.42902576,0.0004,120]
[393537141,1762777906521,-177.69687794,0.0004,120]
[393537142,1762777906566,-464.30134291,0.0004,120]
[393537143,1762777906611,-150.0,0.0004,60]
[393537144,1762777906654,-175655.46406812,0.0004,120]
[393537145,1762777906701,-200.0,0.0004,120]
[393537146,1762777906745,-500.00000001,0.0004,120]
[393537147,1762777906788,-250.01644342,0.0004,120]
[393537148,1762777906831,-1000.0,0.0004,30]
[393537149,1762777906874,-1000.0,0.0004,30]
[393537150,1762777906917,-1000.0,0.0004,30]
[393537151,1762777906958,-1000.0,0.0004,30]
[393537152,1762777907001,-1000.0,0.0004,30]
[393537153,1762777907043,-1000.0,0.0004,30]
[393537154,1762777907086,-1000.0,0.0004,30]
[393537155,1762777907135,-1000.0,0.0004,30]
[393537156,1762777907177,-1000.0,0.0004,30]
[393537157,1762777907218,-1000.0,0.0004,30]
[393537158,1762777907259,-1000.0,0.0004,30]
[393537159,1762777907299,-1000.0,0.0004,30]
[393537160,1762777907338,-1000.0,0.0004,30]
[393537161,1762777907376,-1000.0,0.0004,30]
[393537162,1762777907414,-1000.0,0.0004,30]
[393537163,1762777907452,-1000.0,0.0004,30]
[393537164,1762777907491,-1000.0,0.0004,30]
[393537165,1762777907528,-1000.0,0.0004,30]
[393537166,1762777907566,-1000.0,0.0004,30]
[393537167,1762777907604,-1000.0,0.0004,30]
[393537168,1762777907641,-1000.0,0.0004,30]
[393537169,1762777907679,-1000.0,0.0004,30]
[393537170,1762777907716,-1000.0,0.0004,30]
[393537171,1762777907755,-1000.0,0.0004,30]
[393537172,1762777907794,-1000.0,0.0004,30]
[393537173,1762777907832,-1000.0,0.0004,30]
[393537174,1762777907871,-1000.0,0.0004,30]
[393537175,1762777907909,-1000.0,0.0004,30]